fUSD/lending_fUSD_20240627
["ID","MTS","AMOUNT","RATE_DAILY","PERIOD"]
[330473779,1719470642490,-500.0,0.00041529,30]
[330473780,1719470642530,-500.0,0.00041529,30]
[330473781,1719470642570,-500.0,0.00041529,30]
[330473782,1719470642610,-500.0,0.00041529,30]
[330473783,1719470642650,-500.0,0.00041529,30]
[330473784,1719470642690,-500.0,0.00041529,30]
[330473785,1719470642730,-500.0,0.00041529,30]
[330473786,1719470642769,-500.0,0.00041529,30]
[330473787,1719470642809,-500.0,0.00041529,30]
[330473788,1719470642850,-500.0,0.00041529,30]
[330473789,1719470642891,-500.0,0.00041529,30]
[330473790,1719470642933,-500.0,0.00041529,30]
[330473791,1719470642976,-500.0,0.00041529,30]
[330473792,1719470643022,-500.0,0.00041529,30]
[330473793,1719470643063,-500.0,0.00041529,30]
[330473794,1719470643105,-500.0,0.00041529,30]
[330473795,1719470643147,-500.0,0.00041529,30]
[330473796,1719470643188,-500.0,0.00041529,30]
[330473797,1719470643231,-500.0,0.00041529,30]
[330473798,1719470643272,-500.0,0.00041529,30]
[330473799,1719470643313,-500.0,0.00041529,30]
[330473800,1719470643356,-500.0,0.00041529,30]
[330473801,1719470643401,-500.0,0.00041529,30]
[330473802,1719470643446,-500.0,0.00041529,30]
[330473803,1719470643489,-500.0,0.00041529,30]
[330473804,1719470643533,-500.0,0.00041529,30]
[330473805,1719470643577,-500.0,0.00041529,30]
[330473806,1719470643621,-500.0,0.00041529,30]
[330473807,1719470643666,-500.0,0.00041529,30]
[330473808,1719470643711,-500.0,0.00041529,30]
[330473809,1719470643755,-613.91909202,0.00041529,30]
[330473810,1719470643800,-500.0,0.00041529,30]
[330473811,1719470643844,-500.0,0.00041529,30]
[330473812,1719470643887,-500.0,0.00041529,30]
[330473813,1719470643931,-500.0,0.00041529,30]
[330473814,1719470643975,-500.0,0.00041529,30]
[330473815,1719470644024,-500.0,0.00041529,30]
[330473816,1719470644068,-500.0,0.00041529,30]
[330473817,1719470644113,-500.0,0.00041529,30]
[330473818,1719470644157,-500.0,0.00041529,30]
[330473819,1719470644200,-500.0,0.00041529,30]
[330473820,1719470644245,-500.0,0.00041529,30]
[330473821,1719470644289,-500.0,0.00041529,30]
[330473822,1719470644334,-500.0,0.00041529,30]
[330473823,1719470644376,-500.0,0.00041529,30]
[330473824,1719470644417,-500.0,0.00041529,30]
[330473825,1719470644459,-500.0,0.00041529,30]
[330473826,1719470644502,-500.0,0.00041529,30]
[330473827,1719470644545,-500.0,0.00041529,30]
[330473828,1719470644587,-500.0,0.00041529,30]
[330473829,1719470644628,-500.0,0.00041529,30]
[330473830,1719470644670,-500.0,0.00041529,30]
[330473831,1719470644712,-500.0,0.00041529,30]
[330473832,1719470644753,-500.0,0.00041529,30]
[330473833,1719470644794,-509.40051293,0.00041529,30]
[330473834,1719470644837,-157.27,0.000417,31]
[330473835,1719470644877,-900.0,0.0004173,30]
[330473836,1719470644918,-500.0,0.0004173,30]
[330473837,1719470644960,-500.0,0.00042152,30]
[330473838,1719470645003,-900.0,0.00042278,30]
[330473839,1719470645045,-500.0,0.00042278,30]
[330473840,1719470645092,-500.0,0.00042784,30]
[330473841,1719470645136,-900.0,0.00042826,30]
[330473842,1719470645178,-500.0,0.00042826,30]
[330473843,1719470645221,-269.251,0.00042905,30]
[330473844,1719470645264,-1621.06781794,0.00043319,120]
[330473845,1719470645306,-900.0,0.00043374,30]
[330473846,1719470645349,-500.0,0.00043374,30]
[330473847,1719470645392,-500.0,0.00043426,30]
[330473848,1719470645435,-2000.0,0.00043781,30]
[330473849,1719470645480,-1840.86,0.00043835,120]
[330473850,1719470645523,-1367.68,0.00043835,120]
[330473851,1719470645566,-500.0,0.00043835,120]
[330473852,1719470645608,-477.11702963,0.00043835,120]
[330473853,1719470645659,-846.38,0.00043835,120]
[330473854,1719470645704,-1518.38,0.00043835,120]
[330473855,1719470645747,-1190.23,0.00043835,120]
[330473856,1719470645791,-1232.26,0.00043835,120]
[330473857,1719470645833,-500.0,0.00043835,120]
[330473858,1719470645877,-1670.85,0.00043835,120]
[330473859,1719470645921,-500.0,0.00043835,120]
[330473860,1719470645963,-500.0,0.00043835,120]
[330473861,1719470646009,-500.0,0.00043835,120]
[330473862,1719470646053,-2921.04,0.00043835,120]
[330473863,1719470646099,-738.36,0.00043835,120]
[330473864,1719470646143,-500.0,0.00043835,120]
[330473865,1719470646187,-609.6,0.00043835,120]
[330473866,1719470646232,-1022.95,0.00043835,120]
[330473867,1719470646276,-500.0,0.00043835,120]
[330473868,1719470646606,-500.0,0.00043835,120]
[330473869,1719470646649,-2298.25,0.00043835,120]
[330473870,1719470646692,-500.0,0.00043835,120]
[330473871,1719470646734,-1715.04,0.00043835,120]
[330473872,1719470646777,-500.0,0.00043835,120]
[330473873,1719470646820,-500.0,0.00043835,120]
[330473874,1719470646861,-640.91030478,0.00043835,120]
[330473875,1719470646903,-5051.87,0.00043835,120]
[330473876,1719470646945,-500.0,0.00043835,120]
[330473877,1719470646991,-552.27,0.00043835,120]
[330473878,1719470647034,-500.0,0.00043835,120]
[330473879,1719470647076,-500.0,0.00043835,120]
[330473880,1719470647117,-500.0,0.00043835,120]
[330473881,1719470647158,-500.0,0.00043835,120]
[330473882,1719470647199,-500.0,0.00043835,120]
[330473883,1719470647240,-1084.3,0.00043835,120]
[330473884,1719470647281,-500.0,0.00043835,120]
[330473885,1719470647322,-500.0,0.00043835,120]
[330473886,1719470647362,-500.0,0.00043835,120]
[330473887,1719470647404,-500.0,0.00043835,120]
[330473888,1719470647446,-500.0,0.00043835,120]
[330473889,1719470647488,-500.0,0.00043835,120]
[330473890,1719470647531,-500.0,0.00043835,120]
[330473891,1719470647576,-563.99,0.00043835,120]
[330473892,1719470647619,-500.0,0.00043835,120]
[330473893,1719470647661,-500.0,0.00043835,120]
[330473894,1719470647704,-500.0,0.00043835,120]
[330473895,1719470647746,-725.04,0.00043835,120]
[330473896,1719470647787,-500.0,0.00043835,120]
[330473897,1719470647832,-500.0,0.00043835,120]
[330473898,1719470647875,-500.0,0.00043835,120]
[330473899,1719470647917,-2049.92,0.00043835,120]
[330473900,1719470647960,-500.0,0.00043835,120]
[330473901,1719470648002,-1276.49,0.00043835,120]
[330473902,1719470648042,-500.0,0.00043835,120]
[330473903,1719470648084,-718.17,0.00043835,120]
[330473904,1719470648124,-500.0,0.00043835,120]
[330473905,1719470648166,-616.81669958,0.00043835,120]
[330473906,1719470648207,-500.0,0.00043835,120]
[330473907,1719470648248,-522.15,0.00043835,120]
[330473908,1719470648289,-1526.45,0.00043835,120]
[330473909,1719470648330,-1268.37,0.00043835,120]
[330473910,1719470648374,-500.0,0.00043835,120]
[330473911,1719470648417,-500.0,0.00043835,120]
[330473912,1719470648461,-500.0,0.00043835,120]
[330473913,1719470648503,-500.0,0.00043835,120]
[330473914,1719470648551,-4324.46,0.00043835,120]
[330473915,1719470648595,-500.0,0.00043835,120]
[330473916,1719470648637,-699.36,0.00043835,120]
[330473917,1719470648680,-500.0,0.00043835,120]
[330473918,1719470648724,-500.0,0.00043835,120]
[330473919,1719470648768,-696.16,0.00043835,120]
[330473920,1719470648810,-500.0,0.00043835,120]
[330473921,1719470648855,-1864.6,0.00043835,120]
[330473922,1719470648900,-2187.6,0.00043835,120]
[330473923,1719470648941,-500.0,0.00043835,120]
[330473924,1719470648986,-500.0,0.00043835,120]
[330473925,1719470649030,-500.0,0.00043835,120]
[330473926,1719470649073,-1496.44,0.00043835,120]
[330473927,1719470649116,-304.41695938,0.00043835,120]
[330473928,1719470649159,-500.0,0.00043835,120]
[330473929,1719470649201,-500.0,0.00043835,120]
[330473930,1719470649244,-616.94652969,0.00043835,120]
[330473931,1719470649288,-500.0,0.00043835,120]
[330473932,1719470649331,-500.0,0.00043835,120]
[330473933,1719470649375,-500.0,0.00043835,120]
[330473934,1719470649418,-500.0,0.00043835,120]
[330473935,1719470649462,-606.91,0.00043835,120]
[330473936,1719470649507,-656.81,0.00043835,120]
[330473937,1719470649551,-4053.69,0.00043835,120]
[330473938,1719470649593,-500.0,0.00043835,120]
[330473939,1719470649635,-1623.32,0.00043835,120]
[330473940,1719470649677,-500.0,0.00043835,120]
[330473941,1719470649720,-654.85,0.00043835,120]
[330473942,1719470649761,-552.9,0.00043835,120]
[330473943,1719470649803,-1297.57,0.00043835,120]
[330473944,1719470649844,-500.0,0.00043835,120]
[330473945,1719470649887,-1423.34,0.00043835,120]
[330473946,1719470649927,-1928.61,0.00043835,120]
[330473947,1719470649969,-1548.18,0.00043835,120]
[330473948,1719470650016,-500.0,0.00043835,120]
[330473949,1719470650058,-797.49,0.00043835,120]
[330473950,1719470650101,-500.0,0.00043835,120]
[330473951,1719470650142,-500.0,0.00043835,120]
[330473952,1719470650183,-500.0,0.00043835,120]
[330473953,1719470650228,-1130.37,0.00043835,120]
[330473954,1719470650270,-500.0,0.00043835,120]
[330473955,1719470650311,-500.0,0.00043835,120]
[330473956,1719470650353,-1267.08,0.00043835,120]
[330473957,1719470650396,-504.28,0.00043835,120]
[330473958,1719470650439,-1862.28,0.00043835,120]
[330473959,1719470650483,-500.0,0.00043835,120]
[330473960,1719470650524,-500.0,0.00043835,120]
[330473961,1719470650565,-500.0,0.00043835,120]
[330473962,1719470650608,-500.0,0.00043835,120]
[330473963,1719470650651,-560.09,0.00043835,120]
[330473964,1719470650695,-500.0,0.00043835,120]
[330473965,1719470650739,-3128.17,0.00043835,120]
[330473966,1719470650782,-500.0,0.00043835,120]
[330473967,1719470650824,-500.0,0.00043835,120]
[330473968,1719470650866,-851.58,0.00043835,120]
[330473969,1719470650906,-766.04,0.00043835,120]
[330473970,1719470650949,-500.0,0.00043835,120]
[330473971,1719470650992,-507.85,0.00043835,120]
[330473972,1719470651036,-798.94,0.00043835,120]
[330473973,1719470651359,-1773.55,0.00043835,120]
[330473974,1719470651401,-500.0,0.00043835,120]
[330473975,1719470651443,-500.0,0.00043835,120]
[330473976,1719470651484,-1353.25,0.00043835,120]
[330473977,1719470651523,-200.0,0.00043835,120]
[330473978,1719470651563,-500.0,0.00043835,120]
[330473979,1719470651602,-500.0,0.00043835,120]
[330473980,1719470651642,-1674.58,0.00043835,120]
[330473981,1719470651681,-500.0,0.00043835,120]
[330473982,1719470651719,-500.0,0.00043835,120]
[330473983,1719470651760,-500.0,0.00043835,120]
[330473984,1719470651800,-651.37,0.00043835,120]
[330473985,1719470651838,-655.48,0.00043835,120]
[330473986,1719470651879,-3049.52,0.00043835,120]
[330473987,1719470651918,-592.0,0.00043835,120]
[330473988,1719470651958,-500.0,0.00043835,120]
[330473989,1719470651997,-858.84,0.00043835,120]
[330473990,1719470652035,-787.74,0.00043835,120]
[330473991,1719470652074,-3145.75,0.00043835,120]
[330473992,1719470652115,-3098.43,0.00043835,120]
[330473993,1719470652154,-500.0,0.00043835,120]
[330473994,1719470652195,-3659.1,0.00043835,120]
[330473995,1719470652235,-500.0,0.00043835,120]
[330473996,1719470652275,-500.0,0.00043835,120]
[330473997,1719470652315,-746.47,0.00043835,120]
[330473998,1719470652354,-500.0,0.00043835,120]
[330473999,1719470652394,-1341.57,0.00043835,120]
[330474000,1719470652432,-898.43,0.00043835,120]
[330474001,1719470652476,-934.72,0.00043835,120]
[330474002,1719470652519,-500.0,0.00043835,120]
[330474003,1719470652559,-500.0,0.00043835,120]
[330474004,1719470652600,-706.58,0.00043835,120]
[330474005,1719470652639,-1650.24,0.00043835,120]
[330474006,1719470652680,-5133.18,0.00043835,120]
[330474007,1719470652721,-697.55,0.00043835,120]
[330474008,1719470652765,-2690.47,0.00043835,120]
[330474009,1719470652805,-500.0,0.00043835,120]
[330474010,1719470652844,-1378.4,0.00043835,120]
[330474011,1719470652882,-500.0,0.00043835,120]
[330474012,1719470652924,-500.0,0.00043835,120]
[330474013,1719470652967,-500.0,0.00043835,120]
[330474014,1719470653008,-500.0,0.00043835,120]
[330474015,1719470653049,-500.0,0.00043835,120]
[330474016,1719470653092,-3275.62,0.00043835,120]
[330474017,1719470653134,-2226.22,0.00043835,120]
[330474018,1719470653175,-2016.9,0.00043835,120]
[330474019,1719470653217,-500.0,0.00043835,120]
[330474020,1719470653259,-546.26,0.00043835,120]
[330474021,1719470653302,-717.57,0.00043835,120]
[330474022,1719470653343,-1240.27,0.00043835,120]
[330474023,1719470653385,-500.0,0.00043835,120]
[330474024,1719470653428,-2456.48,0.00043835,120]
[330474025,1719470653470,-3001.87,0.00043835,120]
[330474026,1719470653513,-500.0,0.00043835,120]
[330474027,1719470653556,-2001.44,0.00043835,120]
[330474028,1719470653598,-500.0,0.00043835,120]
[330474029,1719470653641,-500.0,0.00043835,120]
[330474030,1719470653685,-705.33,0.00043835,120]
[330474031,1719470653728,-909.02,0.00043835,120]
[330474032,1719470653770,-489.76500495,0.00043835,120]
[330474033,1719470653813,-1404.89,0.00043835,120]
[330474034,1719470653855,-500.0,0.00043835,120]
[330474035,1719470653896,-2111.06,0.00043835,120]
[330474036,1719470653938,-1426.03,0.00043835,120]
[330474037,1719470653978,-500.0,0.00043835,90]
[330474038,1719470654023,-500.0,0.00043835,120]
[330474039,1719470654064,-500.0,0.00043835,120]
[330474040,1719470654103,-500.0,0.00043835,120]
[330474041,1719470654153,-500.0,0.00043835,120]
[330474042,1719470654197,-766.33,0.00043835,120]
[330474043,1719470654241,-2623.33,0.00043835,120]
[330474044,1719470654281,-1138.14,0.00043835,120]
[330474045,1719470654323,-500.0,0.00043835,120]
[330474046,1719470654362,-1265.29,0.00043835,120]
[330474047,1719470654405,-500.0,0.00043835,120]
[330474048,1719470654445,-500.0,0.00043835,120]
[330474049,1719470654487,-514.81,0.00043835,120]
[330474050,1719470654529,-1666.66,0.00043835,120]
[330474051,1719470654568,-581.92,0.00043835,120]
[330474052,1719470654607,-1004.76,0.00043835,120]
[330474053,1719470654646,-500.0,0.00043835,120]
[330474054,1719470654685,-500.0,0.00043835,120]
[330474055,1719470654724,-500.0,0.00043835,120]
[330474056,1719470654761,-500.0,0.00043835,120]
[330474057,1719470654799,-3064.68,0.00043835,120]
[330474058,1719470654837,-500.0,0.00043835,120]
[330474059,1719470654878,-576.46585616,0.00043835,120]
[330474060,1719470654919,-2680.71,0.00043835,120]
[330474061,1719470654960,-930.25,0.00043835,120]
[330474062,1719470655000,-500.0,0.00043835,120]
[330474063,1719470655041,-1479.68,0.00043835,120]
[330474064,1719470655082,-500.0,0.00043835,120]
[330474065,1719470655124,-500.0,0.00043835,120]
[330474066,1719470655168,-500.0,0.00043835,120]
[330474067,1719470655210,-500.0,0.00043835,120]
[330474068,1719470655251,-500.0,0.00043835,120]
[330474069,1719470655292,-500.0,0.00043835,120]
[330474070,1719470655334,-2451.34,0.00043835,120]
[330474071,1719470655376,-500.0,0.00043835,120]
[330474072,1719470655417,-2023.42,0.00043835,120]
[330474073,1719470655460,-500.0,0.00043835,120]
[330474074,1719470655501,-2611.74,0.00043835,120]
[330474075,1719470655542,-500.0,0.00043835,120]
[330474076,1719470655585,-978.8,0.00043835,120]
[330474077,1719470655982,-500.0,0.00043835,120]
[330474078,1719470656029,-500.0,0.00043835,120]
[330474079,1719470656070,-537.38123752,0.00043835,120]
[330474080,1719470656112,-2616.18,0.00043835,120]
[330474081,1719470656155,-2560.25,0.00043835,120]
[330474082,1719470656197,-500.0,0.00043835,120]
[330474083,1719470656241,-2291.15,0.00043835,120]
[330474084,1719470656284,-2364.1,0.00043835,120]
[330474085,1719470656325,-500.0,0.00043835,120]
[330474086,1719470656366,-500.0,0.00043835,120]
[330474087,1719470656409,-672.7,0.00043835,120]
[330474088,1719470656452,-500.0,0.00043835,120]
[330474089,1719470656491,-500.0,0.00043835,120]
[330474090,1719470656532,-500.0,0.00043835,120]
[330474091,1719470656572,-1036.84,0.00043835,120]
[330474092,1719470656612,-556.14531146,0.00043835,120]
[330474093,1719470656652,-701.12,0.00043835,120]
[330474094,1719470656692,-500.0,0.00043835,120]
[330474095,1719470656731,-500.0,0.00043835,120]
[330474096,1719470656771,-2135.13,0.00043835,120]
[330474097,1719470656810,-500.0,0.00043835,120]
[330474098,1719470656852,-500.0,0.00043835,120]
[330474099,1719470656892,-500.0,0.00043835,120]
[330474100,1719470656931,-500.0,0.00043835,120]
[330474101,1719470656971,-808.79,0.00043835,120]
[330474102,1719470657016,-590.89,0.00043835,120]
[330474103,1719470657057,-500.0,0.00043835,120]
[330474104,1719470657098,-895.65,0.00043835,120]
[330474105,1719470657140,-500.0,0.00043835,120]
[330474106,1719470657182,-4167.28,0.00043835,120]
[330474107,1719470657223,-500.0,0.00043835,120]
[330474108,1719470657265,-500.0,0.00043835,120]
[330474109,1719470657309,-500.0,0.00043835,120]
[330474110,1719470657353,-1448.59,0.00043835,120]
[330474111,1719470657396,-500.0,0.00043835,120]
[330474112,1719470657439,-3354.31,0.00043835,120]
[330474113,1719470657479,-305.03191606,0.00043835,120]
[330474114,1719470657519,-500.0,0.00043835,120]
[330474115,1719470657561,-500.0,0.00043835,120]
[330474116,1719470657602,-500.0,0.00043835,120]
[330474117,1719470657642,-527.89,0.00043835,120]
[330474118,1719470657683,-1718.6,0.00043835,120]
[330474119,1719470657725,-8000.0,0.00043835,120]
[330474120,1719470657767,-1546.39,0.00043835,120]
[330474121,1719470657809,-1364.94,0.00043835,120]
[330474122,1719470657849,-500.0,0.00043835,120]
[330474123,1719470657889,-670.08,0.00043835,120]
[330474124,1719470657929,-250.08908341,0.00043835,120]
[330474125,1719470657970,-500.0,0.00043835,120]
[330474126,1719470658009,-500.0,0.00043835,120]
[330474127,1719470658051,-1064.22,0.00043835,120]
[330474128,1719470658094,-1410.2,0.00043835,120]
[330474129,1719470658134,-500.0,0.00043835,120]
[330474130,1719470658175,-1334.6,0.00043835,120]
[330474131,1719470658216,-500.0,0.00043835,120]
[330474132,1719470658256,-500.0,0.00043835,120]
[330474133,1719470658294,-321.21099604,0.00043835,120]
[330474134,1719470658335,-1166.55,0.00043835,120]
[330474135,1719470658375,-3328.04,0.00043835,120]
[330474136,1719470658417,-596.59,0.00043835,120]
[330474137,1719470658460,-500.0,0.00043835,120]
[330474138,1719470658503,-588.26,0.00043835,120]
[330474139,1719470658546,-537.79429915,0.00043835,120]
[330474140,1719470658588,-500.0,0.00043835,120]
[330474141,1719470658630,-500.0,0.00043835,120]
[330474142,1719470658673,-1012.16,0.00043835,120]
[330474143,1719470658714,-2162.35,0.00043835,120]
[330474144,1719470658756,-500.0,0.00043835,120]
[330474145,1719470658799,-500.0,0.00043835,120]
[330474146,1719470658841,-663.36,0.00043835,120]
[330474147,1719470658884,-500.0,0.00043835,120]
[330474148,1719470658924,-500.0,0.00043835,120]
[330474149,1719470658965,-2510.32,0.00043835,120]
[330474150,1719470659005,-2869.44,0.00043835,120]
[330474151,1719470659043,-2156.29,0.00043835,120]
[330474152,1719470659084,-1121.61,0.00043835,120]
[330474153,1719470659126,-508.88,0.00043835,120]
[330474154,1719470659168,-500.0,0.00043835,120]
[330474155,1719470659215,-500.0,0.00043835,120]
[330474156,1719470659262,-500.0,0.00043835,120]
[330474157,1719470659304,-500.0,0.00043835,120]
[330474158,1719470659346,-500.0,0.00043835,120]
[330474159,1719470659391,-540.56,0.00043835,120]
[330474160,1719470659434,-3331.06,0.00043835,120]
[330474161,1719470659476,-500.0,0.00043835,120]
[330474162,1719470659518,-500.0,0.00043835,120]
[330474163,1719470659561,-500.0,0.00043835,120]
[330474164,1719470659603,-1567.88,0.00043835,120]
[330474165,1719470659646,-500.0,0.00043835,120]
[330474166,1719470659688,-500.0,0.00043835,120]
[330474167,1719470659731,-2408.61,0.00043835,120]
[330474168,1719470659771,-2738.06,0.00043835,120]
[330474169,1719470659812,-500.0,0.00043835,120]
[330474170,1719470659855,-500.0,0.00043835,120]
[330474171,1719470659899,-500.0,0.00043835,120]
[330474172,1719470659940,-500.0,0.00043835,120]
[330474173,1719470659982,-500.0,0.00043835,120]
[330474174,1719470660029,-2138.79,0.00043835,120]
[330474175,1719470660071,-500.0,0.00043835,120]
[330474176,1719470660114,-500.0,0.00043835,120]
[330474177,1719470660157,-518.4422577,0.00043835,120]
[330474178,1719470660197,-1601.27,0.00043835,120]
[330474179,1719470660239,-500.0,0.00043835,120]
[330474180,1719470660537,-1106.81,0.00043835,120]
[330474181,1719470660580,-500.0,0.00043835,120]
[330474182,1719470660621,-500.0,0.00043835,120]
[330474183,1719470660661,-500.0,0.00043835,120]
[330474184,1719470660706,-500.0,0.00043835,120]
[330474185,1719470660748,-500.0,0.00043835,120]
[330474186,1719470660790,-500.0,0.00043835,120]
[330474187,1719470660831,-500.0,0.00043835,120]
[330474188,1719470660871,-555.31,0.00043835,120]
[330474189,1719470660909,-500.0,0.00043835,120]
[330474190,1719470660952,-1209.53,0.00043835,120]
[330474191,1719470660997,-500.0,0.00043835,120]
[330474192,1719470661038,-500.0,0.00043835,120]
[330474193,1719470661080,-500.0,0.00043835,120]
[330474194,1719470661124,-2218.54,0.00043835,120]
[330474195,1719470661166,-9810.1,0.00043835,120]
[330474196,1719470661208,-500.0,0.00043835,120]
[330474197,1719470661251,-500.0,0.00043835,120]
[330474198,1719470661292,-1321.82,0.00043835,120]
[330474199,1719470661331,-500.0,0.00043835,120]
[330474200,1719470661373,-500.0,0.00043835,120]
[330474201,1719470661413,-500.0,0.00043835,120]
[330474202,1719470661454,-705.92,0.00043835,120]
[330474203,1719470661494,-500.0,0.00043835,120]
[330474204,1719470661534,-500.0,0.00043835,120]
[330474205,1719470661573,-1037.45,0.00043835,120]
[330474206,1719470661615,-6173.7,0.00043835,120]
[330474207,1719470661654,-500.0,0.00043835,120]
[330474208,1719470661696,-1219.24,0.00043835,120]
[330474209,1719470661737,-500.0,0.00043835,120]
[330474210,1719470661777,-500.0,0.00043835,120]
[330474211,1719470661816,-580.04463014,0.00043835,120]
[330474212,1719470661855,-1389.33,0.00043835,120]
[330474213,1719470661895,-500.0,0.00043835,120]
[330474214,1719470661933,-353.63709543,0.00043835,120]
[330474215,1719470661973,-507.25029972,0.00043835,120]
[330474216,1719470662016,-500.0,0.00043835,120]
[330474217,1719470662057,-500.0,0.00043835,120]
[330474218,1719470662095,-500.0,0.00043835,120]
[330474219,1719470662135,-500.0,0.00043835,120]
[330474220,1719470662173,-500.0,0.00043835,120]
[330474221,1719470662212,-776.17,0.00043835,120]
[330474222,1719470662255,-1122.47,0.00043835,120]
[330474223,1719470662294,-500.0,0.00043835,120]
[330474224,1719470662333,-1256.64,0.00043835,120]
[330474225,1719470662373,-500.0,0.00043835,120]
[330474226,1719470662411,-500.0,0.00043835,120]
[330474227,1719470662450,-1139.02,0.00043835,120]
[330474228,1719470662490,-2056.39,0.00043835,120]
[330474229,1719470662529,-2269.94,0.00043835,120]
[330474230,1719470662566,-879.97,0.00043835,120]
[330474231,1719470662603,-500.0,0.00043835,120]
[330474232,1719470662643,-500.0,0.00043835,120]
[330474233,1719470662684,-2409.07,0.00043835,120]
[330474234,1719470662724,-500.0,0.00043835,120]
[330474235,1719470662765,-500.0,0.00043835,120]
[330474236,1719470662804,-523.35170266,0.00043835,120]
[330474237,1719470662843,-500.0,0.00043835,120]
[330474238,1719470662883,-500.0,0.00043835,120]
[330474239,1719470662924,-500.0,0.00043835,120]
[330474240,1719470662964,-2036.29,0.00043835,120]
[330474241,1719470663004,-500.0,0.00043835,120]
[330474242,1719470663044,-500.0,0.00043835,120]
[330474243,1719470663083,-500.0,0.00043835,120]
[330474244,1719470663123,-500.0,0.00043835,120]
[330474245,1719470663163,-500.0,0.00043835,120]
[330474246,1719470663202,-583.6,0.00043835,120]
[330474247,1719470663242,-1534.58,0.00043835,120]
[330474248,1719470663282,-500.0,0.00043835,120]
[330474249,1719470663321,-500.0,0.00043835,120]
[330474250,1719470663362,-3991.72,0.00043835,120]
[330474251,1719470663408,-500.0,0.00043835,120]
[330474252,1719470663451,-806.75,0.00043835,120]
[330474253,1719470663494,-1261.31,0.00043835,120]
[330474254,1719470663534,-500.0,0.00043835,120]
[330474255,1719470663578,-885.77,0.00043835,120]
[330474256,1719470663621,-500.0,0.00043835,120]
[330474257,1719470663664,-500.0,0.00043835,120]
[330474258,1719470663708,-809.76,0.00043835,120]
[330474259,1719470663750,-3139.33,0.00043835,120]
[330474260,1719470663792,-500.0,0.00043835,120]
[330474261,1719470663833,-500.0,0.00043835,120]
[330474262,1719470663878,-500.0,0.00043835,120]
[330474263,1719470663921,-1816.51,0.00043835,120]
[330474264,1719470663963,-1000.0,0.00043835,120]
[330474265,1719470664004,-438.14608617,0.00043835,120]
[330474266,1719470664044,-500.0,0.00043835,120]
[330474267,1719470664087,-1114.08,0.00043835,120]
[330474268,1719470664131,-1572.8,0.00043835,120]
[330474269,1719470664172,-1210.06,0.00043835,120]
[330474270,1719470664215,-500.0,0.00043835,120]
[330474271,1719470664257,-500.0,0.00043835,120]
[330474272,1719470664300,-2003.76,0.00043835,120]
[330474273,1719470664342,-675.17,0.00043835,120]
[330474274,1719470664384,-811.27,0.00043835,120]
[330474275,1719470664427,-500.0,0.00043835,120]
[330474276,1719470664468,-500.0,0.00043835,120]
[330474277,1719470664508,-500.0,0.00043835,120]
[330474278,1719470664550,-500.0,0.00043835,120]